Cogmind - Beta 14 @@@ ROGUE MODE // 2025.04.29 @ 10:37:42 Player: Florist Result: Destroyed by G-34 Mercenary with Small Laser Performance ------------- Evolutions (1) 500 Regions Visited (2) 400 Robots Destroyed (23) 115 Value Destroyed (539) 539 Prototype IDs (0) 0 Alien Tech Used (0) 0 Bonus (137) 137 TOTAL SCORE: 1691 Bonus ------- High Alert Combat Kills 137 Cogmind --------- Core Integrity 0/400 Matter 285/300 Energy 90/100 System Corruption 1% Temperature Cool (6) Movement Treading (160) Location -9/Materials Parts ------- > --- POWER (1) -------- (None) > --- PROPULSION (4) --- Light Treads Light Treads > --- UTILITY (2) ------ Small Storage Unit Signal Interpreter > --- WEAPON (2) ------- Scythe > --- INVENTORY (8) ---- Reinforced Ion Engine Reinforced Ion Engine Light Armor Plating Light Armor Plating Scythe Peak State ------------ > --- POWER ------------ (None) > --- PROPULSION ------- Light Treads Improved Treads Improved Treads Improved Treads > --- UTILITY ---------- Small Storage Unit Light Armor Plating > --- WEAPON ----------- Scythe Scythe > --- INVENTORY -------- Reinforced Ion Engine Reinforced Ion Engine Light Treads Signal Interpreter Light Armor Plating Scythe Scythe [Rating: 16] Favorites ----------- Power Light Ion Engine Engine Light Ion Engine Propulsion Light Treads Treads Light Treads Flight Unit VTOL Module Utility Small Storage Unit Storage Small Storage Unit Processor Signal Interpreter Protection Light Armor Plating Weapon Scythe Energy Gun Medium Laser Ballistic Gun Assault Rifle Slashing Weapon Scythe Build | -11 -10 -9 ------- Run | Yrd Mat Mat Slots Evolved 2 | . . 2 Power . | . . . Propulsion 2 | . . 2 Utility . | . . . Weapon . | . . . Parts Attached 26 | 6 2 18 Power 2 | 1 . 1 Engine 2 | 1 . 1 Core . | . . . Reactor . | . . . Propulsion 16 | 2 2 12 Treads 10 | 2 . 8 Leg . | . . . Wheel . | . . . Hover . | . . . Flight 6 | . 2 4 Utility 3 | 1 . 2 Device . | . . . Storage 1 | 1 . . Processor 1 | . . 1 Hackware . | . . . Protection 1 | . . 1 Artifact . | . . . Weapon 5 | 2 . 3 Energy Gun 1 | 1 . . Energy Cannon . | . . . Ballistic Gun 1 | 1 . . Ballistic Cannon . | . . . Launcher . | . . . Special Weapon . | . . . Impact Weapon . | . . . Slashing Weapon 3 | . . 3 Piercing Weapon . | . . . Special Melee Weapon . | . . . Unidentified Prototypes . | . . . Parts Lost 12 | . . 12 Power . | . . . Propulsion 10 | . . 10 Utility . | . . . Weapon 2 | . . 2 Highest Loss Streak 6 | . . 6 To Critical Strikes . | . . . Average Slot Usage (%) 73 | . 79 71 Engine 3 | . 11 1 Treads 26 | . 22 27 Flight 8 | . 5 9 Storage 11 | . 14 11 Processor 3 | . . 4 Energy Gun 3 | . 14 . Ballistic Gun 2 | . 11 . Slashing Weapon 12 | . . 16 Peak Build Rating 16 | 6 8 16 Average Rating 10 | 4 6 12 On Entrance 4 | . 6 7 Naked Turns . | . . . Heaviest Build 15 | 12 12 15 Greatest Support 89 | 40 40 89 Greatest Overweight (x) 2 | . . 2 Average Overweight (x) . | . . . Largest Inventory Capacity 8 | 8 8 8 Average Capacity 7 | 6 8 8 Most Carried 8 | 5 8 8 Average Carried 6 | 2 4 6 Final Capacity 8 | 8 8 8 Final Carried 8 | 3 8 5 Class Distribution -------------------- 77% | Mutant 22% | Sprinter Dominant Class ---------------- Mutant | -10/Materials Mutant | -9/Materials Resources | -11 -10 -9 ----------- Run | Yrd Mat Mat Matter Collected 476 | 210 89 177 Remotely . | . . . Salvage Created 678 | . 89 589 Parts 51 | . 10 41 Haulers Intercepted . | . . . Recyclers Shooed . | . . . Parts Field Recycled . | . . . Retrieved Matter . | . . . Parts Self-Destructed . | . . . Prevented . | . . . Kills | -11 -10 -9 ------- Run | Yrd Mat Mat Combat Hostiles Destroyed 21 | . 3 18 Melee 18 | . . 18 Guns 3 | . 3 . Classes Destroyed 4 | . 2 2 Watcher 2 | . 2 . Swarmer 12 | . 3 9 Grunt 4 | . . 4 Sentry 5 | . . 5 Best Kill Streak 5 | . 4 5 Combat Bots Only 5 | . 3 5 Max Kills in Single Turn 1 | . 1 1 Gunslinging . | . . . Exploded . | . . . Melee 1 | . . 1 Uniques/NPCs Destroyed . | . . . Combat | -11 -10 -9 -------- Run | Yrd Mat Mat Hostile Shots Fired 230 | . 12 218 Missed 58 | . 1 57 Damage Taken 1731 | . 127 1604 Core 417 | . 10 407 Absorbed by Shields . | . . . Core Remaining (%) 98 | 100 96 . Volleys Fired 12 | . 12 . Largest 2 | . 2 . Hottest 70 | . 70 . Shots Fired 23 | . 23 . Gun 23 | . 23 . Cannon . | . . . Launcher . | . . . Special . | . . . Kinetic 12 | . 12 . Thermal 11 | . 11 . Explosive . | . . . Electromagnetic . | . . . Robot Hit Streak 4 | . 4 . Robot Miss Streak 3 | . 3 . Penetration Max . | . . . Secondary Targets . | . . . Shots Hit Robots 54 | . 10 44 Core Hits 17 | . 5 12 Critical Kills . | . . . Critical Parts Destroyed . | . . . Critical Strikes 4 | . . 4 Sever 4 | . . 4 Melee Attacks 68 | . . 68 Impact . | . . . Slashing 68 | . . 68 Piercing . | . . . Sneak Attacks 1 | . . 1 Combat Hostiles 1 | . . 1 Follow-up Attacks 7 | . . 7 Damage Inflicted 1553 | . 126 1427 Guns 126 | . 126 . Cannons . | . . . Explosions . | . . . Melee 1427 | . . 1427 Ramming . | . . . Kinetic 52 | . 52 . Thermal 74 | . 74 . Explosive . | . . . Electromagnetic . | . . . Impact . | . . . Slashing 1427 | . . 1427 Piercing . | . . . Highest Corruption 1 | . . 1 Average Corruption 1 | . . 1 Corruption Purged . | . . . Corruption Blocked . | . . . Effects 5 | . . 5 Message Errors 1 | . . 1 Matter Fused 3 | . . 3 Heat Flow Errors 1 | . . 1 Overload Shots . | . . . Overflow Damage 119 | . . 119 Projectiles . | . . . Explosions . | . . . Melee 119 | . . 119 Knockbacks . | . . . Impact . | . . . Kinetic . | . . . Secondary . | . . . Self-Inflicted Damage . | . . . Shots . | . . . Rammed . | . . . Targets Rammed . | . . . Kicked . | . . . Crushed . | . . . Highest Temperature 154 | . 36 154 Average Temperature 11 | . 11 11 Received Heat Transfer 417 | . . 417 Siege Activations . | . . . Robots Corrupted . | . . . Combat Hostiles . | . . . Parts Fried . | . . . Impact Corruptions . | . . . Robots Melted . | . . . Combat Hostiles . | . . . Parts Melted . | . . . Heat Transferred 222 | . 222 . Parts Sabotaged . | . . . Parts Stolen . | . . . Parts Stripped . | . . . Power Chain Reactions . | . . . Alert | -11 -10 -9 ------- Run | Yrd Mat Mat Peak Influence 779 | . 132 779 Initial 55 | . . 55 Average 349 | . 62 464 Maximum Alert Level 3 | . . 3 Low Security (%) 35 | 100 100 11 Level 1 24 | . . 34 Level 2 32 | . . 45 Level 3 6 | . . 9 Level 4 . | . . . Level 5 . | . . . High Security . | . . . Max Security . | . . . Squads Dispatched 1 | . . 1 Investigation . | . . . Extermination . | . . . Reinforcement 1 | . . 1 Assault . | . . . Garrison . | . . . Intercept . | . . . Searches Triggered 1 | . . 1 Construction Impeded . | . . . Haulers Reinforced . | . . . Active Scanning Responses . | . . . Cargo Convoy Interrupts . | . . . Stealth | -11 -10 -9 --------- Run | Yrd Mat Mat Distress Signals 6 | . 1 5 Communications Jammed . | . . . Distress Signals . | . . . Times Spotted 55 | . 7 48 Peak Tracking Total 11 | . 4 11 Tactical Retreats 12 | . 1 11 Traps | -11 -10 -9 ------- Run | Yrd Mat Mat Traps Triggered 2 | . 1 1 Indirectly . | . . . Trap Hack Attempts . | . . . Triggered . | . . . Disarmed . | . . . Reprogrammed . | . . . Reused . | . . . Traps Extracted . | . . . Installed . | . . . Triggered . | . . . Machines | -11 -10 -9 ---------- Run | Yrd Mat Mat Machines Disabled . | . . . Max in Single Turn . | . . . Machines Repaired . | . . . Machines Dismantled . | . . . Machines Sabotaged . | . . . Overloaded Fab Kills . | . . . Hacking | -11 -10 -9 --------- Run | Yrd Mat Mat Machines Accessed 9 | . 3 6 Terminals 9 | . 3 6 Fabricators . | . . . Repair Stations . | . . . Recycling Units . | . . . Scanalyzers . | . . . Garrison Access . | . . . Total Hacks 18 | . 6 12 Successful 10 | . 5 5 Failed 8 | . 1 7 Catastrophic 2 | . . 2 Database Lockouts . | . . . Manual 18 | . 6 12 Terminals 18 | . 6 12 Fabricators . | . . . Repair Stations . | . . . Recycling Units . | . . . Scanalyzers . | . . . Garrison Access . | . . . Terminal Hacks 2 | . 2 . Level Access Points 1 | . 1 . Terminal Index 1 | . 1 . Fabricator Hacks . | . . . Repair Station Hacks . | . . . Recycling Unit Hacks . | . . . Scanalyzer . | . . . Garrison Access Hacks . | . . . Unauthorized Hacks 8 | . 3 5 Terminals 8 | . 3 5 Assimilate 5 | . . 5 Botnet 3 | . 3 . Fabricators . | . . . Repair Stations . | . . . Recycling Units . | . . . Scanalyzers . | . . . Garrison Access . | . . . Data Cores Recovered . | . . . Used . | . . . Hacking Detections 6 | . 2 4 Full Trace Events 1 | . . 1 Feedback Events . | . . . Feedback Blocked . | . . . Robot Schematics Acquired . | . . . Robots Built . | . . . Authchips . | . . . Time . | . . . Total Robot Build Rating . | . . . Part Schematics Acquired . | . . . Parts Built . | . . . Authchips . | . . . Time . | . . . Total Part Build Rating . | . . . Parts Repaired . | . . . Time . | . . . Parts Recycled . | . . . Recycled Matter . | . . . Retrieved Matter . | . . . Retrieved Components . | . . . Parts Scanalyzed . | . . . Part Schematics Acquired . | . . . Parts Damaged . | . . . Bothacking | -11 -10 -9 ------------ Run | Yrd Mat Mat Used RIF Installer . | . . . Robots Hacked . | . . . Non-combat . | . . . Combat . | . . . Robot Hacks Applied . | . . . Relay Couplers Released . | . . . Fabnet Peak Effective % . | . . . Robots Rewired . | . . . Allies Hacked . | . . . Hacks Repelled . | . . . Allies | -11 -10 -9 -------- Run | Yrd Mat Mat Total Allies 1 | . . 1 Largest Group 1 | . . 1 Highest-Rated Group 10 | . . 10 Highest-Rated Ally 10 | . . 10 Total Orders . | . . . Ally Attacks . | . . . Total Damage . | . . . Kills . | . . . Allies Corrupted . | . . . Allies Melted . | . . . Intel | -11 -10 -9 ------- Run | Yrd Mat Mat Robot Analysis Total . | . . . Derelict Logs Recovered . | . . . Drone Launches . | . . . Drone Recoveries . | . . . Exploration | -11 -10 -9 ------------- Run | Yrd Mat Mat Turns Passed 1021 | 64 219 738 Spaces Moved 995 | 44 179 772 Core 18 | 18 . . Treads 338 | 26 74 238 Legs . | . . . Wheels . | . . . Hover . | . . . Flight 639 | . 105 534 Fastest Speed 26 | 50 32 26 Average Speed 74 | 115 84 69 Slowest Speed 195 | 160 160 195 Overloaded Moves . | . . . Propulsion Burnouts . | . . . Robots Hopped 3 | . . 3 Cave-ins Triggered . | . . . Exploration Rate (%) 35 | 4 32 70 Regions Visited 2 Branch Regions . Pre-discovered Areas . | . . . Known Exits Taken 1 | . 1 . Unknown Exits Taken 1 | 1 . . Scrap Searched . | . . . Spaces Dug . | . . . Terrain Destroyed . | . . . Melee . | . . . Projectile . | . . . AOE . | . . . Terrain Rammed . | . . . Walls Destroyed . | . . . Machines Disabled . | . . . Actions | -11 -10 -9 --------- Run | Yrd Mat Mat Total 1172 | 58 225 889 Wait 32 | . 18 14 Move 987 | 43 178 766 Hop 3 | . . 3 Pick Up 37 | 9 9 19 Fast Attach . | . . . Attach 25 | 6 2 17 Detach 2 | . . 2 Swap 1 | . . 1 Drop 15 | . 6 9 Fire 12 | . 12 . Melee 58 | . . 58 Ram . | . . . Kick . | . . . Crush . | . . . Escape Stasis . | . . . Rewire . | . . . Trap . | . . . Miscellaneous . | . . . Route ------- -11/Scrapyard -10/Materials (discovered 3 exits: *Mat x3) -9/Materials (discovered 2 exits: *Min x2) History --------- Turn | Location | Event 6 | -11/Scrapyard | Discovered new exit (range 16) 65 | -11/Scrapyard | Entered Materials 258 | -10/Materials | Identified exit to Materials 284 | -10/Materials | Entered another Materials area 284 | -9/Materials | Evolved 2 slots: Propulsion x2 319 | -9/Materials | Discovered new exit (range 7) 431 | -9/Materials | Discovered new exit (range 9) 684 | -9/Materials | Search patrols dispatched 742 | -9/Materials | Identified exit to Mines 781 | -9/Materials | Build established: Mutant 942 | -9/Materials | Core integrity fell below 50% 973 | -9/Materials | Core integrity fell below 20% 1022 | -9/Materials | Destroyed by G-34 Mercenary with Small Laser Last Messages --------------- 00977_ Destroyed Lgt. Ion Engine. 00977_ S-10 Pest destroyed. 00979_ R-06 Scavenger collects Lgt. Assault Rifle. 00982_ Destroyed Flight Unit. 00982_ S-10 Pest destroyed. 00984_ K-01 Serf collects debris. 00990_ System corrupted: Heat flow error (+179). 00994_ U-05 Engineer works on Purification Channel. 00996_ Imp. Treads destroyed. 00996_ W-16 Scout sends out distress signal. 00999_ S-10 Pest destroyed. 01004_ G-47 Trooper destroyed. 01007_ U-05 Engineer works on Purification Channel. 01009_ K-01 Serf collects debris. 01010_ Imp. Treads destroyed. 01013_ K-01 Serf collects debris. 01015_ R-06 Scavenger collects Flight Unit. 01016_ Imp. Treads destroyed. 01017_ U-05 Engineer works on Purification Channel. 01018_ K-01 Serf collects debris. Map ----- +----------------------------------------------------+ | ???????# [[#????????# # #?????????? | | ???????# #????????# # #?????????? | | ???????# ! #????????##+####### #?????????? | | ???????# #???????? ????#[ #?????????? | | ???????#+######?????? ??# #?????????? | | ???????? ???????????# ""#?########?????????? | | ???????? ???????????# ""#??????????????????? | | ???????? ???????????# =! [ T"#??????????????????? | | ???????# ???????????# =! ""#??????????????????? | | ???????# ??????????? =! ""#??????????????????? | | ???????# ??????????## ???????????????????? | | ???????# ???????????##/#######???????????????????? | | ???????# #?????###???# ??????????????????????????? | | ???????# #????? #??? ??????????????????????????? | | ???????# #???? #???##??????????????????????????? | | ???????# ###?? ##########??????????????????????? | | ######## / # #??????????????????????? | | / # # # #??????????????????????? | | # # #! #??????????????????????? | | # # << # #??????????????????????? | | + + # [[ #??????????????????????? | | "" """ # # s g[[ *#??????????????????????? | | "" """ # # # [ ==%#??????????????????????? | | "" """ # #? # %%[=#??????????????????????? | | # #? # "[%k#??????????????????????? | | ######## ##############@######+##??????????????? | | ???????# ==%[= ???????? | | ???????# % = s*[%* ???????? | | ???????# ???????? | | ???????###########+###########+##########????????? | | ???????????????# %% #??????????????????????????? | | ???????????????# [* #??????????????????????????? | | ???????????????# #??????????????????????????? | | ???????????????# #??????????????????????????? | | ???????????????# "Y" #??????????????????????????? | | ???????????????# """ #??????????????????????????? | | ???????????????########??????????????????????????? | | | | | | | | | | | | | | | | | | | | | | | | | | | +----------------------------------------------------+ Best States ------------- Heat Dissipation 28 Energy Generation 12 Energy Capacity 265 Matter Stores 300 Matter Capacity 300 Sight Range 16 Terrain Scan Density 10 Armor Coverage 150 Evasion (%) 64 Recoil Reduction 4 Item Schematics ----------------- None Robot Schematics ------------------ None Fabricated ------------ Nothing Alien Tech Used ----------------- None Achievements -------------- None Challenges ------------ None Game ------ Seed UtilityTechCalibrator Manual? 0 Play Time 00:14:22 Cumulative 61.9 hours Start 2025.04.29 @ 10:22:16 End 2025.04.29 @ 10:37:42 Sessions 1 Manual Loads 0 Difficulty Rogue Special Mode None Game No. 76 Rogue 76 Adventurer 0 Explorer 0 Win Type - Total 0 Types 0/0/0/0/0/0/0/0/0 Lore% 14 Gallery% 43 Achievement% 38 Wizard Run 0 Options --------- Layout 1 ASCII 0 Keyboard 0 Movement Mouse Keybinds 0 Fullscreen 1 Font 32/SmallcapsGlow Map View 77x35 Zoom Use 0% Tactical HUD 1 Map Filters NONE Filters NONE Steam 1 RUN: 867a25d4-d969-4247-95e0-4fc9add6c5ac